bitfinex-derivatives/quotes_BNBF0:USTF0_20250315
["timestamp","ask_amount","ask_price","bid_price","bid_amount"]
[1742032814747,0.3016981,597.94,596.45,0.33531729]
[1742032815052,0.3016981,597.93,596.45,0.33531729]
[1742032815244,0.3016981,597.99,596.45,0.33531729]
[1742032816951,0.33444816,598.0,596.45,0.33531729]
[1742032817153,0.30167738,597.98,596.45,0.33531729]
[1742032817346,0.30167738,597.97,596.45,0.33531729]
[1742032817546,0.30167738,597.99,596.45,0.33531729]
[1742032819854,0.29144874,597.98,596.45,0.33531729]
[1742032820052,0.30167738,597.97,596.45,0.33531729]
[1742032820854,0.30167485,597.96,596.45,0.33531729]
[1742032821053,0.30167485,597.97,596.45,0.33531729]
[1742032821253,0.30167485,597.96,596.45,0.33531729]
[1742032821459,0.30167485,597.97,596.45,0.33531729]
[1742032821654,0.30167485,597.96,596.45,0.33531729]
[1742032821954,0.30167485,597.95,596.45,0.33531729]
[1742032822154,0.30167485,597.94,596.46,0.30781406]
[1742032822355,0.30167485,597.93,596.48,0.33530042]
[1742032822556,0.33444816,598.0,596.48,0.33530042]
[1742032822758,0.29145607,597.92,596.48,0.33530042]
[1742032822954,0.30167572,597.91,596.48,0.33530042]
[1742032823158,0.30167572,597.9,596.48,0.33530042]
[1742032823358,0.30167572,597.89,596.48,0.33530042]
[1742032823559,0.30167572,597.96,596.48,0.33530042]
[1742032824658,0.33447612,597.95,596.48,0.33530042]
[1742032824863,0.62594805,597.95,596.48,0.33530042]
[1742032825064,0.30167572,597.94,596.48,0.33530042]
[1742032825258,0.63615744,597.94,596.48,0.33530042]
[1742032825658,0.30167572,597.93,596.48,0.33530042]
[1742032825866,0.59315132,597.93,596.48,0.33530042]
[1742032826066,0.30167572,597.92,596.48,0.33530042]
[1742032826261,0.2914756,597.93,596.48,0.33530042]
[1742032826462,0.30166963,597.92,596.48,0.33530042]
[1742032831669,0.59314523,597.91,596.49,0.30780854]
[1742032831970,0.30166963,597.9,596.5,0.33528918]
[1742032832470,0.2914756,597.91,596.5,0.33528918]
[1742032832669,0.3016712,597.9,596.51,0.30780858]
[1742032832871,0.3016712,597.89,596.52,0.33527794]
[1742032833067,0.3016712,597.88,596.52,0.33527794]
[1742032833271,0.3016712,597.87,596.52,0.33527794]
[1742032833466,2.56182178,597.86,596.52,0.33527794]
[1742032833670,2.86349298,597.86,596.52,0.33527794]
[1742032833878,0.3016712,597.85,596.52,0.33527794]
[1742032834066,0.3016712,597.84,596.53,0.30781022]
[1742032834270,0.3016712,597.83,596.52,0.33527794]
[1742032834470,0.3016712,597.82,596.52,0.33527794]
[1742032834665,0.3016712,597.81,596.52,0.33527794]
[1742032835667,0.29148414,597.82,596.52,0.33527794]
[1742032835872,0.30166648,597.81,596.52,0.33527794]
[1742032837367,0.29148414,597.82,596.52,0.33527794]
[1742032837571,0.30167074,597.81,596.52,0.33527794]
[1742032837869,0.59315732,597.8,596.52,0.33527794]
[1742032838069,0.30167074,597.79,596.52,0.33527794]
[1742032840675,0.30167074,597.93,596.52,0.33527794]
[1742032840874,0.2914878,597.78,596.52,0.33527794]
[1742032841071,0.30167074,597.92,596.52,0.33527794]
[1742032841270,0.30167074,597.91,596.52,0.33527794]
[1742032841471,0.30167074,597.93,596.52,0.33527794]
[1742032841670,0.30167074,597.92,596.52,0.33527794]
[1742032841869,0.30167074,597.93,596.52,0.33527794]
[1742032842073,0.30167074,597.92,596.52,0.33527794]
[1742032842275,0.30167074,597.93,596.52,0.33527794]
[1742032842978,0.29146949,597.92,596.52,0.33527794]
[1742032843173,0.30167074,597.91,596.52,0.33527794]
[1742032844773,0.30166989,597.9,596.52,0.33527794]
[1742032844976,0.30166989,597.91,596.52,0.33527794]
[1742032845176,0.30166989,597.9,596.52,0.33527794]
[1742032845371,0.30166989,597.91,596.52,0.33527794]
[1742032845577,0.30166989,597.9,596.52,0.33527794]
[1742032845778,0.30166989,597.91,596.52,0.33527794]
[1742032846078,0.30166989,597.9,596.52,0.33527794]
[1742032846277,0.29146949,597.92,596.52,0.33527794]
[1742032846478,0.3016553,597.89,596.52,0.33527794]
[1742032846680,0.3016553,597.88,596.52,0.33527794]
[1742032846978,0.3016553,597.9,596.52,0.33527794]
[1742032847181,0.3016553,597.89,596.52,0.33527794]
[1742032847578,0.3016553,597.88,596.52,0.33527794]
[1742032847772,0.3016553,597.9,596.52,0.33527794]
[1742032847978,0.3016553,597.89,596.52,0.33527794]
[1742032848277,0.29145729,597.91,596.52,0.33527794]
[1742032848678,0.3016534,597.9,596.52,0.33527794]
[1742032849779,0.59311191,597.89,596.52,0.33527794]
[1742032850080,0.3016534,597.88,596.52,0.33527794]
[1742032852881,0.59311435,597.87,596.52,0.33527794]
[1742032853180,0.3016534,597.86,596.52,0.33527794]
[1742032853676,0.30167836,597.85,596.52,0.33527794]
[1742032853880,0.30167836,597.84,596.52,0.33527794]
[1742032854276,0.30167836,597.83,596.52,0.33527794]
[1742032854472,0.30167836,597.86,596.52,0.33527794]
[1742032855775,0.2914878,597.85,596.52,0.33527794]
[1742032856182,0.30167836,597.84,596.52,0.33527794]
[1742032858684,0.30167836,597.93,596.52,0.33527794]
[1742032858885,0.29149513,597.83,596.52,0.33527794]
[1742032859078,0.33448172,597.94,596.52,0.33527794]
[1742032859282,0.30172372,597.93,596.52,0.33527794]
[1742032859483,0.3344929,597.92,596.52,0.33527794]
[1742032859786,0.30172372,597.91,596.52,0.33527794]
[1742032859981,0.33450409,597.9,596.52,0.33527794]
[1742032860183,0.30172372,597.89,596.52,0.33527794]
[1742032860380,0.63623341,597.89,596.52,0.33527794]
[1742032862585,0.30171843,597.86,596.52,0.33527794]
[1742032864585,0.30171843,597.85,596.52,0.33527794]
[1742032864789,0.30171843,597.84,596.52,0.33527794]
[1742032867594,0.33450969,597.89,596.52,0.33527794]
[1742032867793,0.29147437,597.83,596.52,0.33527794]
[1742032867994,0.30167976,597.82,596.52,0.33527794]
[1742032869496,0.3016797,597.81,596.52,0.33527794]
[1742032869896,0.3016797,597.8,596.52,0.33527794]
[1742032870198,0.30167998,597.79,596.52,0.33527794]
[1742032870392,0.30167998,597.82,596.52,0.33527794]
[1742032870594,0.30167998,597.81,596.52,0.33527794]
[1742032870900,0.30167998,597.88,596.52,0.33527794]
[1742032871095,0.30167998,597.87,596.52,0.33527794]
[1742032871295,0.33450969,597.89,596.52,0.33527794]
[1742032871600,0.30167217,597.88,596.52,0.33527794]
[1742032872805,0.29146827,597.87,596.52,0.33527794]
[1742032872996,0.30167217,597.86,596.52,0.33527794]
[1742032873195,0.3016755,597.85,596.52,0.33527794]
[1742032873503,0.3016755,597.84,596.52,0.33527794]
[1742032873692,0.3016755,597.88,596.52,0.33527794]
[1742032873898,0.3016755,597.83,596.52,0.33527794]
[1742032874095,0.3016755,597.82,596.52,0.33527794]
[1742032874294,0.3016755,597.81,596.52,0.33527794]
[1742032874493,0.3016755,597.8,596.52,0.33527794]
[1742032874695,0.3016755,597.88,596.52,0.33527794]
[1742032874902,0.3016755,597.87,596.52,0.33527794]
[1742032875103,0.3016755,597.88,596.52,0.33527794]
[1742032875301,0.3016755,597.87,596.52,0.33527794]
[1742032875503,0.3016755,597.86,596.52,0.33527794]
[1742032875698,0.3016755,597.88,596.52,0.33527794]
[1742032875902,0.3016755,597.87,596.52,0.33527794]
[1742032876102,0.3016755,597.86,596.52,0.33527794]
[1742032876297,0.3016755,597.85,596.52,0.33527794]
[1742032876599,0.29146827,597.85,596.52,0.33527794]
[1742032876800,0.3016755,597.84,596.52,0.33527794]
[1742032877203,0.29146827,597.85,596.52,0.33527794]
[1742032877399,0.30167184,597.84,596.52,0.33527794]
[1742032879799,0.29149269,597.83,596.52,0.33527794]
[1742032880199,0.30167184,597.82,596.52,0.33527794]
[1742032882111,0.29149269,597.83,596.52,0.33527794]
[1742032882399,0.30170509,597.82,596.52,0.33527794]
[1742032882801,0.30170509,597.81,596.52,0.33527794]
[1742032883908,0.30171119,597.8,596.52,0.33527794]
[1742032884206,0.30171119,597.79,596.52,0.33527794]
[1742032884405,0.30171119,597.81,596.52,0.33527794]
[1742032884609,0.30171119,597.8,596.52,0.33527794]
[1742032884808,0.30171119,597.81,596.52,0.33527794]
[1742032885008,0.30171119,597.8,596.52,0.33527794]
[1742032885204,0.30171119,597.81,596.52,0.33527794]
[1742032885408,0.30171119,597.8,596.52,0.33527794]
[1742032885609,0.30171119,597.81,596.52,0.33527794]
[1742032885815,0.30171119,597.88,596.52,0.33527794]
[1742032886005,2.38988407,598.39,596.52,0.33527794]
[1742032886006,0.63623207,597.87,596.52,0.33527794]
[1742032886206,0.63623766,597.86,596.52,0.33527794]
[1742032886405,0.63624326,597.85,596.52,0.33527794]
[1742032886602,0.63624885,597.84,596.52,0.33527794]
[1742032886806,0.30171119,597.83,596.52,0.33527794]
[1742032887014,0.33454886,597.82,596.52,0.33527794]
[1742032887209,0.30171119,597.81,596.52,0.33527794]
[1742032888708,0.29152565,597.8,596.52,0.33527794]
[1742032888910,0.30171119,597.79,596.52,0.33527794]
[1742032889505,0.30175562,597.78,596.52,0.33527794]
[1742032889716,0.30175562,597.77,596.52,0.33527794]
[1742032889907,0.30175562,597.79,596.52,0.33527794]
[1742032890107,0.30175562,597.78,596.52,0.33527794]
[1742032890312,0.30175562,597.79,596.52,0.33527794]
[1742032890607,0.30175562,597.78,596.52,0.33527794]
[1742032890812,0.30175562,597.79,596.52,0.33527794]
[1742032891011,0.30175562,597.78,596.52,0.33527794]
[1742032891413,0.30175562,597.77,596.52,0.33527794]
[1742032891809,0.30175562,597.76,596.52,0.33527794]
[1742032893212,0.29152565,597.77,596.52,0.33527794]
[1742032893519,0.30178986,597.76,596.52,0.33527794]
[1742032894414,0.30178986,597.75,596.52,0.33527794]
[1742032894610,0.63638349,597.74,596.52,0.33527794]
[1742032894911,0.30178986,597.73,596.52,0.33527794]
[1742032895512,0.63638909,597.73,596.52,0.33527794]
[1742032895708,0.30178986,597.72,596.52,0.33527794]
[1742032895911,0.63639469,597.72,596.52,0.33527794]
[1742032896117,0.30178986,597.71,596.52,0.33527794]
[1742032897812,0.29157328,597.7,596.52,0.33527794]
[1742032898018,0.30178986,597.69,596.52,0.33527794]
[1742032898718,0.29157328,597.7,596.52,0.33527794]
[1742032898921,0.30177002,597.69,596.52,0.33527794]
[1742032902521,0.29157328,597.7,596.52,0.33527794]
[1742032902724,0.3017725,597.69,596.52,0.33527794]
[1742032903724,0.29157695,597.68,596.52,0.33527794]
[1742032904128,0.3017725,597.67,596.52,0.33527794]
[1742032904328,0.29157695,597.68,596.52,0.33527794]
[1742032904521,0.30177337,597.67,596.52,0.33527794]
[1742032904924,0.30177337,597.66,596.52,0.33527794]
[1742032905127,0.30177337,597.65,596.52,0.33527794]
[1742032905328,0.30177337,597.64,596.52,0.33527794]
[1742032905631,0.30177337,597.63,596.52,0.33527794]
[1742032905928,0.30177337,597.62,596.52,0.33527794]
[1742032906128,0.30177336,597.61,596.52,0.33527794]
[1742032906332,0.30177336,597.67,596.52,0.33527794]
[1742032906631,0.29157695,597.68,596.52,0.33527794]
[1742032906632,0.30177336,597.66,596.52,0.33527794]
[1742032906828,0.30177336,597.65,596.52,0.33527794]
[1742032907025,0.29157695,597.68,596.52,0.33527794]
[1742032907026,0.30177336,597.64,596.52,0.33527794]
[1742032907331,0.30177336,597.63,596.52,0.33527794]
[1742032907631,0.30177336,597.62,596.52,0.33527794]
[1742032907831,0.30177336,597.61,596.52,0.33527794]
[1742032908029,0.30178635,597.6,596.52,0.33527794]
[1742032908335,0.30178635,597.59,596.52,0.33527794]
[1742032908631,0.30178635,597.58,596.52,0.33527794]
[1742032908832,0.30178635,597.67,596.52,0.33527794]
[1742032909026,0.63642477,597.66,596.52,0.33527794]
[1742032909227,0.63643037,597.65,596.52,0.33527794]
[1742032909429,0.30178635,597.64,596.52,0.33527794]
[1742032909826,0.29169303,597.63,596.52,0.33527794]
[1742032910029,0.30178635,597.62,596.52,0.33527794]
[1742032910234,0.33466642,597.61,596.52,0.33527794]
[1742032910531,0.30178635,597.6,596.52,0.33527794]
[1742032910727,0.63645837,597.6,596.52,0.33527794]
[1742032910933,0.30178635,597.59,596.52,0.33527794]
[1742032911334,0.33468322,597.58,596.52,0.33527794]
[1742032911528,0.30178635,597.57,596.52,0.33527794]
[1742032911732,0.63653867,597.56,596.52,0.33527794]
[1742032911930,0.30184425,597.55,596.52,0.33527794]
[1742032912735,0.29164903,597.54,596.52,0.33527794]
[1742032912935,0.30184425,597.53,596.52,0.33527794]
[1742032915035,0.29164903,597.54,596.52,0.33527794]
[1742032915236,0.30188011,597.53,596.52,0.33527794]
[1742032915837,0.29166737,597.52,596.52,0.33527794]
[1742032916336,0.30188011,597.51,596.52,0.33527794]
[1742032918739,0.59358904,597.5,596.52,0.33527794]
[1742032918939,0.30188011,597.49,596.52,0.33527794]
[1742032919140,0.29170893,597.5,596.52,0.33527794]
[1742032919331,0.30188484,597.49,596.52,0.33527794]
[1742032919536,0.30188484,597.49,595.22,1.24439977]
[1742032919735,0.30188484,597.49,596.06,0.29177619]
[1742032920138,0.30188484,597.49,596.07,0.33553106]
[1742032920533,0.30188484,597.48,596.08,0.30802164]
[1742032920734,0.29170893,597.5,596.07,0.33553106]
[1742032920939,0.30188348,597.49,596.08,0.30802153]
[1742032921340,0.30188348,597.48,596.08,0.30802153]
[1742032921539,0.30188348,597.47,596.08,0.30802153]
[1742032921736,0.30188348,597.46,596.09,0.3355198]
[1742032921936,0.30188348,597.45,596.1,0.30802153]
[1742032922243,0.30188348,597.44,596.11,0.33550854]
[1742032922434,0.30188573,597.43,596.11,0.33550854]
[1742032922635,0.30188573,597.42,596.11,0.33550854]
[1742032922840,0.30188573,597.41,596.11,0.33550854]
[1742032923039,0.30188573,597.46,596.11,0.33550854]
[1742032923242,0.30188573,597.45,596.11,0.33550854]
[1742032923437,0.29167225,597.47,596.11,0.33550854]
[1742032923438,0.30188573,597.46,596.11,0.33550854]
[1742032924740,0.59355676,597.45,596.11,0.33550854]
[1742032924934,0.30188573,597.44,596.11,0.33550854]
[1742032927745,0.30188573,597.55,596.11,0.33550854]
[1742032929541,0.33469442,597.56,596.11,0.33550854]
[1742032929743,0.59343262,597.54,596.11,0.33550854]
[1742032929942,0.30181047,597.53,596.11,0.33550854]
[1742032930746,0.30181047,597.55,596.11,0.33550854]
[1742032930947,0.30181047,597.54,596.11,0.33550854]
[1742032931147,0.30181047,597.55,596.12,0.30793977]
[1742032931346,0.30181047,597.55,596.14,0.33549166]
[1742032932048,0.2916197,597.54,596.14,0.33549166]
[1742032932248,0.30181047,597.53,596.14,0.33549166]
[1742032933848,0.59345217,597.52,596.14,0.33549166]
[1742032934142,0.30181047,597.51,596.14,0.33549166]
[1742032936851,0.33469442,597.56,596.14,0.33549166]
[1742032936852,0.30181047,597.55,596.14,0.33549166]
[1742032937053,0.59344973,597.5,596.14,0.33549166]
[1742032937247,0.29163926,597.5,596.14,0.33549166]
[1742032937450,0.30181047,597.49,596.14,0.33549166]
[1742032939956,0.5935304,597.48,596.14,0.33549166]
[1742032940148,0.30181047,597.47,596.14,0.33549166]
[1742032942756,0.5934508,597.46,596.14,0.33549166]
[1742032942956,0.30180788,597.45,596.14,0.33549166]
[1742032944358,0.29164292,597.46,596.14,0.33549166]
[1742032944553,0.30181342,597.45,596.14,0.33549166]
[1742032945758,0.59345879,597.44,596.14,0.33549166]
[1742032945958,0.30181342,597.43,596.14,0.33549166]
[1742032946452,0.30180748,597.42,596.14,0.33549166]
[1742032946655,0.30180748,597.43,596.14,0.33549166]
[1742032946858,0.30180748,597.42,596.14,0.33549166]
[1742032947060,0.29164537,597.44,596.14,0.33549166]
[1742032947061,0.30180748,597.41,596.14,0.33549166]
[1742032947259,0.30180748,597.4,596.14,0.33549166]
[1742032947461,0.30180748,597.43,596.14,0.33549166]
[1742032947661,0.30180748,597.42,596.14,0.33549166]
[1742032948163,0.30180748,597.41,596.14,0.33549166]
[1742032948358,0.30180717,597.4,596.14,0.33549166]
[1742032948558,0.30180717,597.43,596.14,0.33549166]
[1742032948759,0.30180717,597.42,596.14,0.33549166]
[1742032948961,0.29164781,597.39,596.14,0.33549166]
[1742032949255,0.30180717,597.38,596.14,0.33549166]
[1742032949755,0.29164781,597.39,596.14,0.33549166]
[1742032950356,0.30180974,597.38,596.14,0.33549166]
[1742032951663,0.30180974,597.55,596.14,0.33549166]
[1742032951857,0.30180974,597.54,596.14,0.33549166]
[1742032952163,0.30180974,597.55,596.14,0.33549166]
[1742032952359,0.30180974,597.54,596.14,0.33549166]
[1742032952559,0.30180974,597.55,596.14,0.33549166]
[1742032952757,0.30180974,597.54,596.14,0.33549166]
[1742032952963,0.30180974,597.55,596.14,0.33549166]
[1742032953957,0.33469442,597.56,596.14,0.33549166]
[1742032954759,2.56182178,598.54,596.14,0.33549166]
[1742032954760,0.30173871,597.55,596.15,0.30787627]
[1742032954962,2.56182178,598.54,596.17,0.33547478]
[1742032955164,0.33420784,598.43,596.18,0.30787627]
[1742032955365,0.30169127,598.42,596.2,0.3354579]
[1742032955661,0.33426928,598.32,596.21,0.30787627]
[1742032955864,0.30169127,598.31,596.23,0.33544102]
[1742032956059,0.33428604,598.29,596.24,0.30787627]
[1742032956260,0.30168507,598.28,596.26,0.33542414]
[1742032956459,0.33430281,598.26,596.26,0.33542414]
[1742032956657,0.30168507,598.25,596.27,0.30782169]
[1742032956858,0.33431957,598.23,596.29,0.33540726]
[1742032957059,0.30168507,598.22,596.29,0.33540726]
[1742032957259,0.30168507,598.21,596.29,0.33540726]
[1742032957462,0.30168507,598.2,596.3,0.30780714]
[1742032957659,0.29147315,598.2,596.29,0.33540726]
[1742032957963,0.30166998,598.19,596.3,0.30780733]
[1742032958164,0.30166998,598.18,596.32,0.33539039]
[1742032958464,0.3343587,598.16,596.33,0.30780733]
[1742032958764,0.30166998,598.15,596.35,0.33537352]
[1742032959063,0.30166998,598.14,596.35,0.33537352]
[1742032959263,0.63604545,598.13,596.35,0.33537352]
[1742032959563,0.29147315,598.2,596.35,0.33537352]
[1742032959564,0.63605104,598.12,596.35,0.33537352]
[1742032959762,0.63605663,598.11,596.35,0.33537352]
[1742032959965,0.63606222,598.1,596.35,0.33537352]
[1742032960164,0.33439783,598.09,596.35,0.33537352]
[1742032960361,0.30166998,598.08,596.35,0.33537352]
[1742032960763,0.33440901,598.07,596.35,0.33537352]
[1742032960964,0.30166998,598.06,596.35,0.33537352]
[1742032961264,0.33442019,598.05,596.35,0.33537352]
[1742032961468,0.30166998,598.04,596.35,0.33537352]
[1742032961663,0.33443138,598.03,596.35,0.33537352]
[1742032961862,0.30166998,598.02,596.35,0.33537352]
[1742032962059,0.33444256,598.01,596.35,0.33537352]
[1742032962364,0.30166998,598.0,596.35,0.33537352]
[1742032962566,0.33445375,597.99,596.35,0.33537352]
[1742032962764,0.30166998,597.98,596.35,0.33537352]
[1742032962963,0.33446493,597.97,596.35,0.33537352]
[1742032963166,0.30166998,597.96,596.36,0.30778825]
[1742032963365,0.33447053,597.96,596.38,0.33535665]
[1742032963565,0.30165201,597.95,596.38,0.33535665]
[1742032963962,0.59313249,597.95,596.38,0.33535665]
[1742032964161,0.30165201,597.94,596.38,0.33535665]
[1742032965464,0.30165201,597.94,596.39,0.30778491]
[1742032965664,0.30165201,597.94,596.41,0.33533978]
[1742032966867,0.59313615,597.93,596.41,0.33533978]
[1742032967067,0.30165201,597.92,596.41,0.33533978]
[1742032969268,0.30165201,597.92,596.42,0.3077896]
[1742032969472,0.30165201,597.92,596.44,0.33532291]
[1742032969966,0.5931215,597.91,596.44,0.33532291]
[1742032970267,0.30165201,597.9,596.44,0.33532291]
[1742032972767,0.59314714,597.89,596.44,0.33532291]
[1742032972973,0.30165201,597.88,596.45,0.30781559]
[1742032973270,0.30165201,597.88,596.46,0.33531167]
[1742032973471,0.30165201,597.87,596.46,0.33531167]
[1742032973668,0.30165201,597.86,596.46,0.33531167]
[1742032973870,0.30165201,597.85,596.46,0.33531167]
[1742032974068,0.30165201,597.84,596.46,0.33531167]
[1742032974268,0.30165201,597.83,596.46,0.33531167]
[1742032974470,0.30165201,597.88,596.46,0.33531167]
[1742032974666,0.30165201,597.87,596.46,0.33531167]
[1742032974867,0.30165201,597.86,596.46,0.33531167]
[1742032975068,0.29149513,597.89,596.46,0.33531167]
[1742032975270,0.30168498,597.88,596.47,0.30782168]
[1742032975464,0.30168498,597.87,596.48,0.33530042]
[1742032975669,0.30168498,597.86,596.48,0.33530042]
[1742032975870,0.29148536,597.86,596.48,0.33530042]
[1742032976066,0.30168423,597.85,596.48,0.33530042]
[1742032976265,0.30168423,597.84,596.48,0.33530042]
[1742032976470,0.30168423,597.83,596.48,0.33530042]
[1742032976870,0.30168423,597.82,596.48,0.33530042]
[1742032977266,0.30168423,597.81,596.48,0.33530042]
[1742032977466,0.29148536,597.86,596.48,0.33530042]
[1742032977467,0.30168423,597.8,596.48,0.33530042]
[1742032977771,0.30168423,597.79,596.48,0.33530042]
[1742032977974,0.30168423,597.85,596.48,0.33530042]
[1742032978872,0.30168423,597.84,596.48,0.33530042]
[1742032979072,0.29149879,597.84,596.48,0.33530042]
[1742032979273,0.30168423,597.83,596.48,0.33530042]
[1742032979867,0.30168423,597.82,596.48,0.33530042]
[1742032980068,0.30168423,597.81,596.48,0.33530042]
[1742032980271,0.30168423,597.83,596.48,0.33530042]
[1742032980472,0.30168423,597.82,596.48,0.33530042]
[1742032980667,0.30168423,597.83,596.48,0.33530042]
[1742032981474,0.33454886,597.82,596.48,0.33530042]
[1742032981679,0.30168423,597.81,596.48,0.33530042]
[1742032981976,0.62608184,597.82,596.48,0.33530042]
[1742032982277,0.6363101,597.81,596.48,0.33530042]
[1742032982471,0.6363157,597.8,596.48,0.33530042]
[1742032982776,0.6363213,597.79,596.48,0.33530042]
[1742032982975,0.63632689,597.78,596.48,0.33530042]
[1742032983175,0.30175565,597.77,596.48,0.33530042]
[1742032983376,0.33458244,597.76,596.48,0.33530042]
[1742032983578,0.30175565,597.75,596.48,0.33530042]
[1742032984980,0.29152321,597.74,596.48,0.33530042]
[1742032985376,0.30175565,597.73,596.48,0.33530042]
[1742032985781,0.29152321,597.74,596.48,0.33530042]
[1742032986082,0.30172359,597.73,596.48,0.33530042]
[1742032987586,0.33458244,597.76,596.48,0.33530042]
[1742032987788,0.30173059,597.75,596.48,0.33530042]
[1742032987983,0.29153664,597.72,596.48,0.33530042]
[1742032988186,0.30173059,597.71,596.48,0.33530042]
[1742032990187,0.30174475,597.7,596.48,0.33530042]
[1742032990382,0.30174475,597.71,596.48,0.33530042]
[1742032993183,0.29153664,597.72,596.48,0.33530042]
[1742032993388,0.30172834,597.71,596.48,0.33530042]
[1742032993782,0.59327475,597.7,596.48,0.33530042]
[1742032993987,0.30172834,597.69,596.48,0.33530042]
[1742032996893,0.29154641,597.68,596.48,0.33530042]
[1742032997091,0.59327475,597.68,596.48,0.33530042]
[1742032997287,0.30172834,597.67,596.48,0.33530042]
[1742032999691,0.30172834,597.75,596.48,0.33530042]
[1742032999886,0.29154641,597.66,596.48,0.33530042]
[1742033000089,0.30172834,597.65,596.48,0.33530042]
[1742033000287,0.30172834,597.75,596.48,0.33530042]
[1742033000488,0.30172834,597.74,596.48,0.33530042]
[1742033000686,0.30172834,597.73,596.48,0.33530042]
[1742033000993,0.30172834,597.72,596.48,0.33530042]
[1742033001192,0.30172834,597.71,596.48,0.33530042]
[1742033001492,0.30172834,597.7,596.48,0.33530042]
[1742033001686,0.30172834,597.69,596.48,0.33530042]
[1742033001891,0.30167525,597.75,596.48,0.33530042]
[1742033002088,0.33458244,597.76,596.48,0.33530042]
[1742033002592,0.30167551,597.75,596.48,0.33530042]
[1742033003993,0.33458244,597.76,596.48,0.33530042]
[1742033004288,0.30167207,597.75,596.48,0.33530042]
[1742033004989,0.29150489,597.74,596.48,0.33530042]
[1742033005187,0.30167207,597.73,596.48,0.33530042]
[1742033005891,0.30167207,597.75,596.48,0.33530042]
[1742033007292,0.33459363,597.74,596.48,0.33530042]
[1742033007488,0.30167207,597.73,596.48,0.33530042]
[1742033007893,0.30175762,597.72,596.48,0.33530042]
[1742033008193,0.30175762,597.71,596.48,0.33530042]
[1742033008495,0.30175762,597.7,596.48,0.33530042]
[1742033008792,0.30175762,597.69,596.48,0.33530042]
[1742033009695,0.30176111,597.68,596.48,0.33530042]
[1742033009889,0.30176111,597.69,596.48,0.33530042]
[1742033011491,0.30176301,597.68,596.48,0.33530042]
[1742033011693,0.30176301,597.69,596.48,0.33530042]
[1742033011892,0.29170282,597.67,596.48,0.33530042]
[1742033012091,0.30176301,597.66,596.48,0.33530042]
[1742033014794,0.30176301,597.73,596.48,0.33530042]
[1742033014999,0.29158061,597.65,596.48,0.33530042]
[1742033015196,0.30176301,597.64,596.48,0.33530042]
[1742033015400,0.30176301,597.71,596.48,0.33530042]
[1742033015600,0.30176301,597.7,596.48,0.33530042]
[1742033015800,0.30176301,597.71,596.48,0.33530042]
[1742033016096,0.30176301,597.7,596.48,0.33530042]
[1742033016897,0.29157572,597.69,596.48,0.33530042]
[1742033017497,0.30176301,597.68,596.48,0.33530042]
[1742033017800,0.30176301,597.67,596.48,0.33530042]
[1742033020905,0.29157939,597.66,596.48,0.33530042]
[1742033021406,0.30176301,597.65,596.48,0.33530042]
[1742033023910,0.59334484,597.64,596.48,0.33530042]
[1742033024110,0.30176301,597.63,596.48,0.33530042]
[1742033024609,0.29158183,597.64,596.48,0.33530042]
[1742033025412,0.30176134,597.63,596.48,0.33530042]
[1742033026310,0.30176134,597.62,596.48,0.33530042]
[1742033026610,0.30176134,597.61,596.48,0.33530042]
[1742033026802,0.30176134,597.6,596.48,0.33530042]
[1742033029806,0.29159405,597.59,596.48,0.33530042]
[1742033030211,0.30176134,597.58,596.48,0.33530042]
[1742033031410,0.301771,597.57,596.48,0.33530042]
[1742033031609,0.301771,597.58,596.48,0.33530042]
[1742033031806,0.301771,597.57,596.48,0.33530042]
[1742033032010,0.301771,597.58,596.48,0.33530042]
[1742033032210,0.301771,597.57,596.48,0.33530042]
[1742033032404,0.301771,597.58,596.48,0.33530042]
[1742033035012,0.29159405,597.59,596.48,0.33530042]
[1742033035013,0.30177137,597.57,596.48,0.33530042]
[1742033035215,0.30177137,597.56,596.48,0.33530042]
[1742033035416,0.30177137,597.58,596.48,0.33530042]
[1742033035613,0.30177137,597.57,596.48,0.33530042]
[1742033035810,0.30177137,597.7,596.48,0.33530042]
[1742033036013,0.29159405,597.57,596.48,0.33530042]
[1742033036215,0.30177137,597.56,596.48,0.33530042]
[1742033036415,0.30177137,597.7,596.48,0.33530042]
[1742033036615,0.30177137,597.69,596.48,0.33530042]
[1742033036911,0.30177137,597.68,596.48,0.33530042]
[1742033037111,0.30177311,597.67,596.48,0.33530042]
[1742033037313,0.30177311,597.66,596.48,0.33530042]
[1742033037509,0.30177311,597.65,596.48,0.33530042]
[1742033037815,0.30177311,597.64,596.48,0.33530042]
[1742033038910,0.30177311,597.63,596.48,0.33530042]
[1742033039110,0.30177311,597.62,596.48,0.33530042]
[1742033039309,0.30177311,597.61,596.48,0.33530042]
[1742033039513,0.30177311,597.6,596.48,0.33530042]
[1742033039711,0.30177311,597.7,596.48,0.33530042]
[1742033039914,0.29157817,597.6,596.48,0.33530042]
[1742033040115,0.30177311,597.59,596.48,0.33530042]
[1742033040311,0.29158061,597.59,596.48,0.33530042]
[1742033040516,0.30177311,597.58,596.48,0.33530042]
[1742033040712,0.30176719,597.57,596.48,0.33530042]
[1742033040911,0.30176719,597.58,596.48,0.33530042]
[1742033041115,0.30176719,597.57,596.48,0.33530042]
[1742033041315,0.30176719,597.58,596.48,0.33530042]
[1742033041615,0.33461042,597.71,596.48,0.33530042]
[1742033041616,0.30176719,597.57,596.48,0.33530042]